bitfinex/quotes_ETHUSD_20220311
["timestamp","ask_amount","ask_price","bid_price","bid_amount"]
[1647014132977,0.04455779,2571.2,2569.8,0.00096]
[1647014133180,0.82293813,2570.6,2569.9,0.98915479]
[1647014133480,0.82293813,2570.6,2569.7,0.3]
[1647014133481,0.0485378,2570.5,2569.7,0.3]
[1647014133877,3.5,2571.5,2569.8,0.15392707]
[1647014133878,0.04350284,2571.4,2569.8,0.15392707]
[1647014134080,0.04636792,2571.4,2569.9,0.00096]
[1647014134276,0.04636792,2571.4,2569.9,3.50096]
[1647014134481,0.04636792,2571.4,2569.9,0.46196]
[1647014134676,0.04636792,2571.4,2570.0,0.00417813]
[1647014134877,0.90666975,2571.1,2570.0,0.00417813]
[1647014135123,0.04636792,2571.4,2570.1,1.43314]
[1647014135320,0.04636792,2571.4,2570.2,3.50096]
[1647014135520,0.04636792,2571.4,2570.2,3.96196]
[1647014135720,0.9544,2572.0,2570.2,3.96196]
[1647014135721,0.97217,2571.7,2570.2,1.65589037]
[1647014135921,0.97217,2571.7,2570.4,0.00417786]
[1647014136120,1.05637387,2571.5,2571.2,1.0]
[1647014136324,2.91622,2572.4,2571.2,1.0]
[1647014136526,2.96256296,2572.4,2571.2,1.3]
[1647014136724,2.91622,2572.4,2571.3,0.65493037]
[1647014137123,6.41622,2572.4,2571.3,0.203245]
[1647014137326,5.5,2572.2,2571.2,1.0]
[1647014137523,7.83086568,2572.3,2571.2,1.0]
[1647014137524,3.54591106,2572.1,2571.2,1.0]
[1647014137726,7.83031275,2572.0,2571.2,1.0]
[1647014137920,1.01504747,2571.9,2571.2,1.0]
[1647014138121,0.94334824,2571.5,2571.2,1.0]
[1647014138523,0.94334824,2571.5,2571.3,0.01577041]
[1647014138969,0.9867749,2571.5,2570.0,2.20230823]
[1647014139173,0.97222,2571.0,2570.0,0.20230823]
[1647014139368,3.54720756,2571.4,2571.3,0.00394224]
[1647014139568,0.97135967,2570.8,2570.1,0.85593508]
[1647014139772,0.01182671,2570.9,2570.1,0.85593508]
[1647014140474,0.01182671,2570.9,2570.1,1.15593508]
[1647014140873,0.8237382,2570.8,2570.1,1.15593508]
[1647014141371,0.8237382,2570.8,2570.0,0.3]
[1647014141574,0.8237382,2570.8,2570.0,0.761]
[1647014141873,3.5,2570.7,2570.3,0.00132395]
[1647014142076,0.97262,2570.4,2570.3,0.00132395]
[1647014142276,2.06612744,2570.4,2570.3,2.395e-05]
[1647014142476,5.56612744,2570.4,2570.3,2.395e-05]
[1647014142722,5.56612744,2570.4,2569.7,0.01986414]
[1647014142723,6.5,2570.3,2569.7,0.01986414]
[1647014142924,1.9457,2569.9,2568.7,0.00096]
[1647014143230,2.86323621,2569.9,2569.8,0.0052968]
[1647014143423,0.3,2569.9,2569.8,0.0052968]
[1647014143821,7.7765,2570.4,2569.1,0.00096]
[1647014144022,3.5,2570.3,2568.9,0.461]
[1647014144226,0.97263,2570.1,2569.1,0.00096]
[1647014144421,0.97263,2570.1,2568.7,0.461]
[1647014144422,0.97263,2570.1,2568.9,0.3]
[1647014144622,0.97263,2570.1,2568.8,0.00096]
[1647014145227,0.97263,2570.1,2569.4,0.00399602]
[1647014145427,7.7765,2570.4,2569.4,0.00399602]
[1647014145836,7.7765,2570.4,2569.5,0.461]
[1647014146028,7.7765,2570.4,2569.5,0.65493037]
[1647014146226,7.7765,2570.4,2569.6,1.0]
[1647014146473,7.7765,2570.4,2570.2,0.87392022]
[1647014147074,7.60381793,2570.4,2570.3,0.461]
[1647014147279,0.01182671,2570.9,2570.3,0.461]
[1647014147280,0.01182671,2570.9,2570.3,15.241]
[1647014147472,0.01182671,2570.9,2570.5,14.83]
[1647014147674,3.5,2572.8,2570.9,17.83]
[1647014147675,3.5,2572.4,2570.9,17.83]
[1647014147974,3.5,2572.8,2571.0,0.461]
[1647014148275,1.94347,2572.7,2571.0,0.76196]
[1647014148480,1.94347,2572.7,2571.1,0.00096]
[1647014148481,3.5,2572.6,2571.1,0.00096]
[1647014148676,0.90362089,2571.9,2571.2,0.80742368]
[1647014148877,0.97189,2571.9,2571.3,0.00096]
[1647014149078,0.97189,2571.9,2571.2,1.10742368]
[1647014149878,0.97189,2571.9,2571.2,1.10642368]
[1647014150126,0.81300883,2571.8,2571.2,2.07826368]
[1647014150329,0.81300883,2571.8,2571.2,1.27084]
[1647014150731,0.00399026,2571.7,2571.2,1.27084]
[1647014151137,1.27189,2571.9,2571.2,0.97184]
[1647014151334,2.99926816,2572.9,2572.0,1.94333]
[1647014151335,0.08383816,2572.9,2572.0,1.94333]
[1647014151531,0.08383816,2572.9,2571.7,1.9437]
[1647014151532,18.41383816,2572.9,2571.7,1.9437]
[1647014151736,11.83,2572.2,2571.5,0.00096]
[1647014151936,0.9722477,2572.0,2571.2,0.97211]
[1647014152134,0.96439155,2571.3,2571.2,0.97211]
[1647014153332,0.96439155,2571.3,2570.8,0.00096]
[1647014153637,0.96439155,2571.3,2570.6,4.86013]
[1647014154069,0.00355143,2571.4,2570.6,5.86013]
[1647014154668,0.00355143,2571.4,2570.6,4.88788]
[1647014154869,0.05175775,2571.4,2571.1,0.00665641]
[1647014155272,1.01185541,2571.3,2571.1,0.00665641]
[1647014155673,0.05326958,2571.2,2571.1,0.00665641]
[1647014157721,0.9723656,2571.6,2571.1,0.00665641]
[1647014157722,15.33,2572.5,2571.1,0.97888641]
[1647014157921,0.24223816,2572.9,2571.1,0.97888641]
[1647014157922,7.7766,2572.4,2571.1,0.97888641]
[1647014158119,7.7766,2572.4,2571.2,0.00096]
[1647014158320,0.05189571,2572.3,2571.2,0.00096]
[1647014158520,0.83495811,2571.9,2571.2,0.99493237]
[1647014158720,0.83495811,2571.9,2571.1,1.27888641]
[1647014158923,0.87655162,2571.9,2571.1,1.27888641]
[1647014159121,0.83495811,2571.9,2571.1,1.97888641]
[1647014159321,0.83495811,2571.9,2571.1,0.97888641]
[1647014159722,0.83495811,2571.9,2571.1,2.03578921]
[1647014160122,0.04653402,2572.3,2571.1,2.03578921]
[1647014160123,1.01864862,2572.3,2571.1,2.03578921]
[1647014160325,1.02420484,2572.3,2571.2,0.08079832]
[1647014160534,1.02420484,2572.3,2571.2,0.08175832]
[1647014160726,0.05209024,2572.3,2571.2,0.00096]
[1647014161130,0.00391328,2571.8,2571.7,1.01696964]
[1647014161388,0.38743778,2571.6,2571.5,1.94379]
[1647014161575,0.00391328,2571.8,2571.3,2.91573]
[1647014161771,0.00391328,2571.8,2571.3,4.21573]
[1647014161970,0.00391328,2571.8,2571.4,3.37581]
[1647014162170,7.7766,2572.4,2571.5,2.5]
[1647014162373,7.7766,2572.4,2572.3,1.85952904]
[1647014162573,0.04989353,2573.6,2572.4,2.5]
[1647014162772,0.05158476,2574.2,2572.4,2.5]
[1647014162970,0.05158476,2574.2,2572.5,15.33]
[1647014163170,0.5,2574.8,2572.5,15.33]
[1647014163171,1.01712076,2574.6,2572.6,12.30469159]
[1647014163372,1.01712076,2574.6,2573.3,0.9712]
[1647014163571,1.01712076,2574.6,2572.7,3.50096]
[1647014163572,1.09530952,2573.9,2573.2,1.94228]
[1647014163773,1.09530952,2573.9,2573.3,0.00096]
[1647014163970,0.04588616,2574.6,2573.2,0.3]
[1647014164177,1.0091,2575.0,2573.3,0.00096]
[1647014164178,0.04755752,2574.9,2573.3,0.00096]
[1647014164373,1.0091,2575.0,2573.3,0.00096]
[1647014164571,1.0091,2575.0,2573.6,0.9711]
[1647014164772,1.0091,2575.0,2573.7,0.00096]
[1647014164773,11.83,2574.7,2573.7,0.00096]
[1647014164972,0.05376784,2574.5,2573.5,0.00096]
[1647014165242,0.12495484,2574.4,2573.2,3.50096]
[1647014165436,0.19393037,2574.9,2573.2,3.50096]
[1647014165437,0.04695422,2574.9,2573.3,0.46196]
[1647014165635,1.00487048,2575.0,2573.6,0.19393037]
[1647014165836,0.9591,2575.0,2573.7,3.88451]
[1647014166035,0.61670149,2575.0,2573.8,3.5]
[1647014166336,0.61670149,2575.0,2573.9,0.53454856]
[1647014166337,0.00265602,2574.1,2573.9,0.53454856]
[1647014166538,0.61670149,2575.0,2574.0,0.07771099]
[1647014166740,0.61670149,2575.0,2574.0,2.67412136]
[1647014166939,0.61670149,2575.0,2574.1,0.07772225]
[1647014167137,3.5,2574.9,2574.1,0.07772225]
[1647014167536,0.61670149,2575.0,2574.1,0.07772225]
[1647014167736,0.04557493,2575.2,2574.1,0.07772225]
[1647014167737,0.90345498,2574.8,2574.1,0.07772225]
[1647014167938,0.96867571,2574.2,2573.9,0.07134895]
[1647014168138,0.96867571,2574.2,2573.9,0.07038895]
[1647014168339,1.0,2574.9,2573.9,0.07038895]
[1647014168539,1.0,2575.3,2574.0,0.07558576]
[1647014168738,1.0,2575.3,2574.0,3.50096]
[1647014168971,1.0,2575.3,2574.1,0.07922584]
[1647014169171,1.0,2575.3,2574.1,0.54022584]
[1647014169381,1.0,2575.3,2574.5,1.990837]
[1647014169382,1.0212039,2575.1,2574.5,1.990837]
[1647014169573,1.0,2575.3,2574.6,0.07937098]
[1647014169874,1.0,2575.9,2574.7,5.5]
[1647014170078,1.0,2575.9,2574.7,5.69393037]
[1647014170279,1.0,2575.9,2574.8,0.07318306]
[1647014170476,0.73514213,2576.7,2575.6,1.9407]
[1647014170477,1.07298722,2576.1,2575.6,1.9407]
[1647014170676,0.04484181,2576.7,2575.6,1.9407]
[1647014170677,1.59615456,2576.0,2575.7,0.08525874]
[1647014170877,0.73514213,2576.7,2575.7,0.08525874]
[1647014171078,1.59602086,2576.6,2575.7,0.08525874]
[1647014171278,1.59602086,2576.5,2575.7,0.08621874]
[1647014171476,0.04450586,2577.3,2575.7,0.54625874]
[1647014171477,0.69030032,2577.1,2575.7,0.54625874]
[1647014171676,1.59582064,2577.0,2576.5,0.97002]
[1647014171882,1.59582064,2576.9,2576.7,0.08858708]
[1647014172082,0.04544117,2577.5,2576.5,0.97002]
[1647014172276,1.0,2577.7,2576.6,3.8]
[1647014172480,0.04880583,2578.3,2576.7,0.54605038]
[1647014172722,0.04880583,2578.3,2576.8,0.07426631]
[1647014172924,0.1549812,2578.7,2576.8,0.07426631]
[1647014172925,0.05816379,2578.7,2577.9,0.91501621]
[1647014173125,0.05816379,2578.7,2577.9,1.67601621]
[1647014173322,0.0093812,2578.7,2577.9,1.76124374]
[1647014173522,0.0093812,2578.7,2578.0,0.07297227]
[1647014173722,0.0093812,2578.7,2578.1,0.461]
[1647014173923,1.01125057,2578.6,2578.2,0.08322639]
[1647014174724,1.01125057,2578.6,2577.9,1.3]
[1647014174725,1.06082024,2578.6,2577.9,1.3]
[1647014174926,1.06082024,2578.6,2577.6,2.23905]
[1647014174927,0.00605223,2578.3,2577.6,2.23905]
[1647014175121,0.00605223,2578.3,2577.6,1.93905]
[1647014175726,0.95683311,2578.2,2577.6,1.93905]
[1647014175931,0.87832448,2578.2,2577.6,1.93905]
[1647014176127,0.00415423,2578.1,2577.6,1.93905]
[1647014176382,0.00415423,2578.1,2577.7,0.3]
[1647014176572,0.05347045,2578.1,2577.3,0.25]
[1647014176773,0.05347045,2578.1,2577.2,0.08820828]
[1647014176774,1.06994251,2577.8,2577.2,0.08820828]
[1647014177177,3.55425864,2577.7,2576.7,0.07803871]
[1647014177378,0.04619722,2577.6,2576.7,1.93972]
[1647014177571,0.04619722,2577.6,2576.7,2.01442566]
[1647014177774,0.04619722,2577.6,2576.8,0.08807914]
[1647014177972,1.07094887,2577.4,2576.8,1.23524185]
[1647014178172,0.04785289,2577.9,2576.8,1.23524185]
[1647014178472,0.00415429,2578.0,2576.8,1.23524185]
[1647014178473,0.00415429,2578.0,2576.9,0.0694668]
[1647014178671,0.0041547,2577.3,2576.9,0.0694668]
[1647014179072,0.0041547,2577.3,2576.9,0.26339717]
[1647014179271,1.06502227,2577.7,2576.9,0.26339717]
[1647014179471,1.06502227,2577.7,2577.1,0.96966]
[1647014179674,0.00316622,2577.2,2577.0,1.93931]
[1647014179875,0.00316622,2577.2,2577.1,0.0721804]
[1647014180528,1.02131005,2577.3,2576.8,2.23957]
[1647014180829,0.04429611,2577.2,2576.4,0.97008]
[1647014181436,0.36599999,2576.5,2576.4,0.97008]
[1647014181627,0.36599999,2576.5,2576.2,0.14086242]
[1647014181628,0.36599999,2576.5,2576.2,0.05436181]
[1647014181827,0.36599999,2576.5,2575.6,0.00096]
[1647014182028,0.36599999,2576.5,2575.5,0.07019816]
[1647014182029,3.5,2576.4,2575.5,3.5]
[1647014182227,3.5,2576.4,2575.2,0.00096]
[1647014182228,0.0517838,2576.3,2575.2,0.00096]
[1647014182435,0.0517838,2576.3,2575.0,0.00096]
[1647014182627,0.64024906,2575.1,2574.5,0.00096]
[1647014182825,0.64024906,2575.1,2574.4,0.96322008]
[1647014183026,0.64024906,2575.1,2574.5,0.07945028]
[1647014183229,3.5,2575.0,2574.5,0.07945028]
[1647014183428,0.64024906,2575.1,2574.3,1.94154]
[1647014183627,0.64024906,2575.1,2573.6,9.7064]
[1647014183628,0.04176353,2574.9,2573.9,0.00096]
[1647014183883,0.04176353,2574.9,2573.9,0.07646942]
[1647014184073,0.89924725,2574.4,2573.9,0.07646942]
[1647014184273,0.04176353,2574.9,2573.9,0.07646942]
[1647014184473,0.00368575,2574.8,2573.9,0.07646942]
[1647014184673,0.00368575,2574.8,2573.9,0.07742942]
[1647014184874,0.00368575,2574.8,2573.9,0.07646942]
[1647014185281,0.05388565,2575.1,2573.9,0.07646942]
[1647014185480,0.00368593,2574.5,2574.1,0.97083]
[1647014186281,0.00368593,2574.5,2573.9,2.01806942]
[1647014186480,0.00368593,2574.5,2573.9,1.9416]
[1647014186680,0.00368595,2574.4,2573.9,1.9416]
[1647014186883,0.00368595,2574.4,2573.8,1.05842636]
[1647014187097,0.05022949,2574.4,2573.5,0.00096]
[1647014187284,0.05022949,2574.4,2573.3,0.05532181]
[1647014187632,0.05022949,2574.4,2573.3,0.05436181]
[1647014187633,0.04654354,2574.4,2573.3,0.05436181]
[1647014187821,1.00144089,2573.9,2573.3,1.19641495]
[1647014188223,1.00144089,2573.9,2573.3,0.05436181]
[1647014188423,1.00144089,2573.9,2573.3,0.14402911]
[1647014188723,1.00144089,2573.9,2573.3,0.05436181]
[1647014188922,3.5,2575.0,2573.3,0.05436181]
[1647014188923,0.04358196,2574.9,2573.3,0.05436181]
[1647014189123,0.00384288,2574.2,2573.3,0.05436181]
[1647014190231,0.04358196,2574.9,2573.5,0.92776599]
[1647014190428,0.04358196,2574.9,2573.6,0.08554155]
[1647014190629,3.5,2575.3,2573.6,2.02840155]
[1647014190831,0.00384302,2574.2,2573.7,0.07739734]
[1647014191032,0.00384302,2574.2,2573.5,1.0]
[1647014191229,0.00384302,2574.2,2573.4,0.08196436]
[1647014191476,0.00384302,2574.2,2573.3,0.05436181]
[1647014191879,0.04611856,2574.2,2573.0,0.00096]
[1647014192074,0.04611856,2574.2,2572.8,0.00096]
[1647014192075,3.54611856,2574.2,2572.8,0.00096]
[1647014192276,3.54611856,2574.2,2572.7,0.02908715]
[1647014192277,0.04662265,2574.1,2572.7,0.02908715]
[1647014192478,0.34662265,2574.1,2572.7,0.02908715]
[1647014192676,0.04662265,2574.1,2572.7,0.02908715]
[1647014193076,1.07278206,2574.1,2573.4,1.0104594]
[1647014193277,0.0526682,2574.0,2573.4,1.0104594]
[1647014193477,0.0526682,2574.0,2572.9,0.03122758]
[1647014194377,0.0526682,2574.0,2573.0,0.86343751]
[1647014194378,0.84123974,2573.6,2573.0,0.86343751]
[1647014194678,0.0526682,2574.0,2573.0,0.86343751]
[1647014194878,0.00388481,2574.2,2573.0,0.86343751]
[1647014195130,0.04973601,2574.4,2573.1,0.0865917]
[1647014195332,0.04973601,2574.4,2573.2,2.91331]
[1647014195538,0.00389427,2574.2,2573.2,3.91427]
[1647014195734,0.00389427,2574.2,2573.6,1.84368357]
[1647014195937,0.05645658,2574.2,2573.4,0.07410319]
[1647014196133,0.05256231,2574.2,2573.4,0.07410319]
[1647014196533,0.05256231,2574.2,2573.6,0.97118]
[1647014196534,0.05645683,2574.2,2573.6,0.97118]
[1647014196935,0.00389452,2574.2,2573.6,1.94234]
[1647014197338,3.5,2575.0,2573.6,1.94234]
[1647014197339,0.04426816,2574.9,2573.6,1.94234]
[1647014197534,0.00389473,2574.2,2573.6,1.94234]
[1647014197734,0.00389473,2574.2,2573.7,0.00096]
[1647014197934,0.81052479,2574.2,2573.6,1.94234]
[1647014198336,0.05074096,2574.1,2573.6,1.94234]
[1647014198971,0.00390125,2574.2,2573.6,1.94234]
[1647014199177,0.00390125,2574.2,2573.7,0.97102]
[1647014199578,0.00390125,2574.2,2573.8,0.07220556]
[1647014199778,0.05679932,2575.0,2573.8,5.24054556]
[1647014199980,1.5,2575.3,2574.2,4.5]
[1647014200179,0.05623435,2575.5,2574.9,0.97054]
[1647014200782,0.05623435,2575.5,2574.9,1.27054]
[1647014200980,0.05623435,2575.5,2574.9,1.94109]
[1647014201579,11.88152373,2575.8,2574.9,1.94109]
[1647014201778,11.88152373,2575.8,2574.9,0.97055]
[1647014201779,11.83,2575.8,2574.9,0.97055]
[1647014201983,0.05435421,2575.7,2574.9,0.97055]
[1647014202181,0.05687853,2575.6,2574.9,0.97055]
[1647014202618,1.1117626,2575.3,2574.9,0.97055]
[1647014202820,0.04634048,2575.2,2574.7,1.9411]
[1647014203022,0.8765932,2574.9,2574.7,1.9411]
[1647014203229,0.8765932,2574.9,2574.0,0.00096]
[1647014203230,3.54840658,2574.8,2574.0,0.00096]
[1647014203433,3.54840658,2574.8,2573.8,0.00096]
[1647014203434,0.05249775,2574.5,2573.8,0.00096]
[1647014203627,0.05249775,2574.5,2573.6,2.03003351]
[1647014203829,0.05249775,2574.5,2573.6,3.03003351]
[1647014204227,0.05249775,2574.5,2574.0,0.93131887]
[1647014204428,0.05249775,2574.5,2574.0,1.90232887]
[1647014204627,1.14649141,2574.5,2574.0,0.97101]
[1647014204829,0.00383497,2574.3,2574.0,0.97101]
[1647014205027,0.00383497,2574.3,2573.9,1.94203]
[1647014205828,0.00383497,2574.3,2573.9,0.85929662]
[1647014206031,0.05181695,2574.4,2573.9,0.85929662]
[1647014206230,0.00378033,2574.3,2573.9,0.85929662]
[1647014206882,0.05181695,2574.4,2573.9,0.85929662]
[1647014207086,0.00378033,2574.3,2573.9,0.85929662]
[1647014207686,0.00378033,2574.3,2573.9,1.83031662]
[1647014207887,0.00378033,2574.3,2574.0,0.97099]
[1647014208086,0.05181695,2574.4,2574.0,0.97099]
[1647014208692,0.00378033,2574.3,2574.0,0.97099]
[1647014209488,1.7027563,2574.6,2574.0,0.97099]
[1647014209689,1.7027563,2574.6,2574.4,0.81210944]
[1647014209888,1.7027563,2574.6,2574.4,0.97082]
[1647014211028,1.70654079,2574.6,2574.4,0.97082]
[1647014211731,1.70654079,2574.6,2574.5,0.08178162]
[1647014211931,1.70654079,2574.6,2574.5,0.27571199]
[1647014212129,1.7027563,2574.6,2574.5,2.21670199]
[1647014212329,1.70654079,2574.6,2574.5,2.21670199]
[1647014212530,1.70654079,2574.6,2574.5,2.13492037]
[1647014212929,1.7027563,2574.6,2574.5,2.13492037]
[1647014213130,1.7027563,2574.6,2574.5,1.94099]
[1647014213731,0.52125095,2574.6,2574.5,1.94099]
[1647014214977,0.52614095,2574.6,2574.5,1.94099]
[1647014217640,0.3877,2575.4,2574.6,0.08177563]
[1647014217833,0.3877,2575.4,2575.1,0.81169202]
[1647014218329,0.3877,2575.4,2574.9,2.00807002]
[1647014218929,0.4341054,2575.4,2574.9,3.88233]
[1647014219332,0.9706721,2575.5,2574.9,3.88233]
[1647014219333,0.92422216,2575.3,2574.9,1.94118]
[1647014219534,0.05103142,2575.2,2574.7,1.94115]
[1647014219733,0.05103142,2575.2,2574.7,2.94115]
[1647014219934,0.05103142,2575.2,2574.7,1.94115]
[1647014220334,0.05103142,2575.2,2574.4,1.94146]
[1647014220335,3.55103142,2575.2,2574.5,1.94154]
[1647014220536,3.55103142,2575.2,2574.3,1.94276]
[1647014220537,0.81300632,2574.7,2574.3,1.94276]
[1647014220834,0.85648262,2574.7,2574.3,0.9709]
[1647014221037,0.85648262,2574.7,2574.1,1.9417]
[1647014221038,3.54886686,2574.6,2574.1,1.9417]
[1647014221242,0.04886686,2574.6,2573.7,0.19489037]
[1647014221481,0.04886686,2574.6,2573.8,0.97112]
[1647014221686,0.86359939,2574.2,2573.8,0.97112]
[1647014221982,0.86359939,2574.2,2573.9,0.97107]
[1647014222181,0.04905394,2574.4,2573.9,0.97107]
[1647014222581,0.04905394,2574.4,2573.9,1.94211]
[1647014222782,0.04905394,2574.4,2573.9,0.97104]
[1647014223187,0.00401578,2574.3,2573.9,0.97104]
[1647014223882,2.01221418,2574.4,2573.9,0.97104]
[1647014224083,0.00401754,2574.3,2573.9,0.97104]
[1647014224486,0.00401754,2574.3,2573.9,1.9421]
[1647014224883,0.00401754,2574.3,2574.0,1.63405732]
[1647014225140,0.00401754,2574.3,2574.2,0.07603415]
[1647014225333,0.05226707,2575.6,2574.3,2.5]
[1647014225634,1.01491466,2576.0,2575.1,1.94106]
[1647014225831,1.01491466,2576.0,2574.4,0.06938183]
[1647014225832,0.04875209,2575.8,2575.2,0.9705]
[1647014226032,0.04875209,2575.8,2575.2,0.9205]
[1647014226233,0.08383816,2576.1,2575.2,0.9205]
[1647014226531,1.18711557,2575.9,2575.3,2.78835226]
[1647014226733,0.05025111,2575.9,2575.3,2.78835226]
[1647014226936,0.36599999,2576.5,2575.3,2.78835226]
[1647014226937,0.04751094,2576.4,2575.4,0.97044]
[1647014227134,0.0514005,2576.2,2575.4,0.97044]
[1647014227531,0.0514005,2576.2,2575.7,0.97033]
[1647014227732,0.36599999,2576.5,2575.6,1.94065]
[1647014227937,0.36599999,2576.5,2575.6,2.40165]
[1647014228134,0.36599999,2576.5,2575.8,0.97043]
[1647014228334,0.36599999,2576.5,2575.9,0.07184109]
[1647014228633,0.36599999,2576.5,2576.3,0.97019]
[1647014228874,0.9625353,2576.4,2576.2,1.94019]
[1647014229280,0.00389677,2576.2,2575.9,0.97043]
[1647014229882,0.05284837,2576.3,2575.9,0.97043]
[1647014230179,0.05284837,2576.3,2576.0,0.97029]
[1647014230379,0.05284837,2576.3,2576.0,1.94057]
[1647014231179,0.05284837,2576.3,2576.0,0.97028]
[1647014231380,0.00417183,2576.3,2576.0,0.97028]
[1647014232182,0.41549314,2576.5,2576.0,0.97028]
[1647014232384,0.3879,2577.1,2576.2,0.97024]
[1647014232637,7.6879,2577.1,2576.3,1.51276676]
[1647014232834,7.6879,2577.1,2576.6,2.90939]
[1647014232835,0.3879,2577.1,2576.6,2.90939]
[1647014233032,3.5,2577.9,2576.6,2.90939]
[1647014233033,0.04364157,2577.7,2576.6,2.90939]
[1647014233232,1.59538527,2577.6,2576.6,4.0730694]
[1647014233436,0.05310726,2577.5,2577.1,0.96973]
[1647014233637,0.05310726,2577.5,2577.1,1.93955]
[1647014233836,1.0337451,2577.2,2577.1,1.93955]
[1647014234036,1.0337451,2577.2,2577.1,2.1774994]
[1647014234236,1.0337451,2577.2,2576.4,0.07678734]
[1647014234437,0.04207564,2577.1,2576.4,1.94016]
[1647014234641,0.04207564,2577.1,2576.5,1.9403]
[1647014235136,0.24048051,2576.7,2576.5,1.9403]
[1647014235336,0.24048051,2576.7,2576.4,1.94023]
[1647014235537,0.0038385,2576.9,2576.3,1.94029]
[1647014235936,11.83,2577.5,2576.3,1.94029]
[1647014235937,3.39345048,2577.7,2576.4,1.94038]
[1647014236136,0.04602175,2577.6,2576.4,0.97019]
[1647014236374,0.00383865,2576.7,2576.6,0.97011]
[1647014236579,0.00383865,2576.7,2576.6,2.91014]
[1647014237380,0.00383865,2576.7,2576.4,2.91041]
[1647014237579,0.00383865,2576.7,2576.2,4.85113]
[1647014237781,0.00383865,2576.7,2576.2,1.94036]
[1647014237982,0.05374939,2576.8,2576.2,1.94036]
[1647014238679,0.05374939,2576.8,2576.3,0.97027]
[1647014238680,0.0499108,2576.8,2576.3,0.97027]
[1647014238883,0.00386244,2576.6,2576.3,1.0411327]
[1647014239080,0.00386244,2576.6,2576.5,0.07897794]
[1647014239279,1.59575986,2577.6,2576.5,0.07897794]
[1647014239482,1.59575986,2577.6,2576.5,4.2675629]
[1647014239686,0.91401996,2577.2,2576.7,0.07160635]
[1647014240121,0.91401996,2577.2,2577.0,1.9397]
[1647014240325,7.35370815,2577.7,2577.0,3.87965]
[1647014240326,0.05370815,2577.7,2577.0,3.87965]
[1647014240525,0.08383816,2578.0,2577.0,1.93995]
[1647014240726,1.59553441,2577.9,2577.0,1.93995]
[1647014241126,1.59553441,2577.9,2577.4,1.93946]
[1647014241330,0.86978952,2577.6,2577.5,0.9698]
[1647014241729,0.1319196,2578.0,2577.4,2.90924]
[1647014241928,1.5954699,2577.9,2577.4,2.90924]
[1647014242135,1.5954699,2577.9,2577.4,4.84884]
[1647014242335,0.00257583,2577.7,2577.5,0.96977]
[1647014242530,0.00257583,2577.7,2577.5,1.93957]
[1647014243129,2.55286711,2578.4,2577.6,0.96975]
[1647014243328,0.0093812,2578.7,2577.9,1.93908]
[1647014243532,1.59486299,2578.6,2577.9,1.93908]
[1647014243890,1.61129669,2578.6,2577.9,1.93908]
[1647014244081,0.0164337,2578.6,2577.9,1.93908]
[1647014244281,0.0164337,2578.6,2578.5,0.96939]
[1647014244480,0.0093812,2578.7,2578.5,0.96939]
[1647014245281,0.0187624,2578.7,2578.5,2.9077]
[1647014245483,6.24e-05,2578.7,2578.6,2.39931]
[1647014245688,0.01643523,2578.8,2578.7,5.5]
[1647014245885,0.0032572,2579.5,2578.8,0.00392985]
[1647014246083,0.0032572,2579.5,2579.1,2.9065]
[1647014246283,0.0032572,2579.5,2579.3,1.03846189]
[1647014246284,0.04149491,2579.4,2579.3,1.03846189]
[1647014246484,0.04149491,2579.4,2579.1,5.30505]
[1647014246884,0.04092649,2579.3,2579.1,5.30505]
[1647014247084,0.04092649,2579.3,2579.2,2.9065]
[1647014247285,0.0032572,2579.5,2579.2,2.9065]
[1647014247487,0.0032572,2579.5,2579.2,3.87554]
[1647014247730,0.0032572,2579.5,2579.2,0.96904]
[1647014247731,0.04149491,2579.4,2579.2,0.96904]
[1647014247930,0.04149491,2579.4,2579.1,1.93755]
[1647014247931,0.09459297,2579.4,2579.1,1.93755]
[1647014248131,0.09459297,2579.4,2578.8,1.93851]
[1647014248132,0.04092649,2579.3,2578.8,1.93851]
[1647014248531,0.04035806,2579.2,2578.8,1.93851]
[1647014248731,0.86778077,2579.1,2578.8,1.93851]
[1647014248932,0.04478558,2579.0,2578.8,1.93851]
[1647014249334,0.04035806,2579.2,2578.8,1.93851]
[1647014249735,0.00396852,2579.1,2578.8,1.93851]
[1647014249933,0.00396852,2579.1,2578.9,0.96916]
[1647014250141,0.953662,2579.0,2578.8,1.93851]
[1647014250538,0.953662,2579.0,2578.5,1.93864]
[1647014250540,0.04593419,2578.9,2578.5,1.93864]
[1647014251405,0.32056361,2578.6,2578.5,1.93864]
[1647014252202,0.00405876,2578.9,2578.5,1.93864]
[1647014253004,0.08728644,2579.2,2578.5,1.93864]
[1647014253205,0.88673362,2578.9,2578.5,1.93864]
[1647014253405,0.04702672,2578.8,2578.5,1.93864]
[1647014254205,0.04702672,2578.8,2578.5,0.23768016]
[1647014255228,0.04702672,2578.8,2578.4,1.93871]
[1647014256028,0.38749199,2578.5,2578.4,1.93871]
[1647014256231,0.38749199,2578.5,2578.2,0.0039687]
[1647014256430,0.0543113,2578.4,2578.2,0.0039687]
[1647014256631,0.0543113,2578.4,2577.5,0.08279869]
[1647014257129,0.0543113,2578.4,2578.2,0.0039685]
[1647014257333,0.99647746,2578.3,2578.2,0.0039685]
[1647014257529,8.75347746,2578.3,2578.2,0.0039685]
[1647014257731,0.0496725,2578.1,2577.8,1.93945]
[1647014257935,0.27774815,2577.9,2577.8,1.93945]
[1647014258129,0.0496725,2578.1,2577.8,1.93945]
[1647014258333,7.757,2578.3,2578.2,0.00405222]
[1647014259187,8.8144972,2578.3,2578.1,0.00418928]
[1647014259385,0.0447316,2578.2,2578.1,0.00418928]
[1647014260190,9.1144972,2578.3,2577.9,0.9696]
[1647014260389,8.8144972,2578.3,2577.9,1.93916]
[1647014260593,7.757,2578.3,2577.9,1.93916]
[1647014260788,7.757,2578.3,2578.0,1.94349934]
[1647014261192,7.757,2578.3,2578.0,3.88231934]
[1647014261388,7.757,2578.3,2578.2,0.08322214]
[1647014261788,7.757,2578.3,2578.2,1.15109506]
[1647014261993,1.9586727,2578.3,2578.2,1.15109506]
[1647014262196,0.00400063,2578.9,2578.4,0.07534245]
[1647014262389,0.00400063,2578.9,2578.8,0.96919]
[1647014262638,0.04035806,2579.2,2578.8,0.96919]
[1647014262826,0.04035806,2579.2,2578.8,1.06943951]
[1647014263025,0.00385938,2578.9,2578.7,0.07902739]